fUST/lending_fUST_20251230
["ID","MTS","AMOUNT","RATE_DAILY","PERIOD"]
[400091329,1767089018685,-151.0,0.00033,31]
[400091330,1767089018719,-238.1177,0.00033,31]
[400091331,1767089018751,-238.1177,0.00033,31]
[400091332,1767089018783,-238.1177,0.00033,31]
[400091333,1767089018814,-238.117691,0.00033,31]
[400091334,1767089018847,-151.0,0.00033,31]
[400091335,1767089018884,-151.0,0.00033,31]
[400091336,1767089018920,-151.0,0.00033,31]
[400091337,1767089018964,-151.0,0.00033,31]
[400091338,1767089019158,-151.0,0.00033,31]
[400091339,1767089019188,-151.0,0.00033,31]
[400091340,1767089019217,-151.0,0.00033,31]
[400091341,1767089019245,-151.377295,0.00033,31]
[400091342,1767089019275,-500.15351,0.00033,31]
[400091343,1767089019305,-151.0,0.00033,31]
[400091344,1767089019334,-500.15351,0.00033,31]
[400091345,1767089019368,-151.0,0.00033,31]
[400091346,1767089019396,-500.15351,0.00033,31]
[400091347,1767089019427,-151.0,0.00033,31]
[400091348,1767089019456,-500.153508,0.00033,31]
[400091349,1767089019486,-986.161584,0.00033,31]
[400091350,1767089019518,-986.161584,0.00033,31]
[400091351,1767089019551,-986.161584,0.00033,31]
[400091352,1767089019584,-986.161584,0.00033,31]
[400091353,1767089019616,-1391.47,0.0003315,34]
[400091354,1767089019649,-1241.1395,0.0003322,30]
[400091355,1767089019680,-161.0,0.00033226,30]
[400091356,1767089019721,-193.3325444,0.00033315,30]
[400091357,1767089019753,-193.3325444,0.00033315,30]
[400091358,1767089019784,-193.3325444,0.00033315,30]
[400091359,1767089019816,-885.01,0.000336,30]
[400091360,1767089019847,-500.0,0.0003365,30]
[400091361,1767089019876,-500.0,0.0003365,30]
[400091362,1767089019905,-500.0,0.0003365,30]
[400091363,1767089019936,-1391.47,0.00033698,35]
[400091364,1767089019965,-669.91685083,0.000339,120]
[400091365,1767089019995,-590.14317731,0.000339,120]
[400091366,1767089020024,-367.65543656,0.000339,120]
[400091367,1767089020052,-759.91165305,0.000339,120]
[400091368,1767089020080,-661.08285093,0.000339,120]
[400091369,1767089020109,-616.97791178,0.000339,120]
[400091370,1767089020138,-274.75817992,0.000339,120]
[400091371,1767089020168,-82487.71866317,0.00033998,30]
[400091372,1767089020198,-649.81812289,0.00034,120]
[400091373,1767089020227,-1950000.0,0.00034,30]
[400091374,1767089020257,-186.19554048,0.00034,120]
[400091375,1767089020290,-295.663,0.000342,30]
[400091376,1767089020323,-295.66,0.000342,30]
[400091377,1767089020357,-1391.47,0.00034246,36]
[400091378,1767089020389,-21201.1084,0.0003444,30]
[400091379,1767089020419,-161.0,0.00034521,30]
[400091380,1767089020451,-864.0,0.00034555,30]
[400091381,1767089020482,-1779.0,0.00034768,60]
[400091382,1767089020511,-150.69,0.00034773,60]
[400091383,1767089020540,-167.16447471,0.00034773,60]
[400091384,1767089020571,-1391.47,0.00034794,37]
[400091385,1767089020601,-885.01,0.000348,30]
[400091386,1767089020633,-1779.0,0.00034868,60]
[400091387,1767089020663,-150.69,0.00034873,60]
[400091388,1767089020693,-669.91685083,0.000349,120]
[400091389,1767089020722,-590.14317731,0.000349,120]
[400091390,1767089020749,-367.65543656,0.000349,120]
[400091391,1767089020778,-759.91165305,0.000349,120]
[400091392,1767089020809,-661.08285093,0.000349,120]
[400091393,1767089020837,-616.97791178,0.000349,120]
[400091394,1767089020865,-274.75817992,0.000349,120]
[400091395,1767089020896,-1779.0,0.00034968,60]
[400091396,1767089020925,-150.69,0.00034973,60]
[400091397,1767089020954,-928.13872542,0.00035,60]
[400091398,1767089020981,-1644.35160472,0.00035,30]
[400091399,1767089021010,-1533.15723331,0.00035,120]
[400091400,1767089021039,-200.0,0.00035,120]
[400091401,1767089021069,-1779.0,0.00035068,60]
[400091402,1767089021099,-150.69,0.00035073,60]
[400091403,1767089021128,-986.161584,0.00035096,31]
[400091404,1767089021155,-986.161584,0.00035096,31]
[400091405,1767089021183,-986.161584,0.00035096,31]
[400091406,1767089021214,-986.161584,0.00035096,31]
[400091407,1767089021242,-1779.0,0.00035168,60]
[400091408,1767089021272,-150.69,0.00035173,60]
[400091409,1767089021301,-1108.7,0.000352,120]
[400091410,1767089021331,-1779.0,0.00035268,60]
[400091411,1767089021367,-150.69,0.00035273,60]
[400091412,1767089021400,-1391.47,0.00035342,38]
[400091413,1767089021434,-1779.0,0.00035368,60]
[400091414,1767089021463,-150.69,0.00035373,60]
[400091415,1767089021494,-1779.0,0.00035468,60]
[400091416,1767089021524,-206.0,0.0003547,41]
[400091417,1767089021552,-150.69,0.00035473,60]
[400091418,1767089021582,-1779.0,0.00035568,60]
[400091419,1767089021613,-150.69,0.00035573,60]
[400091420,1767089021643,-151.0,0.00035616,31]
[400091421,1767089021671,-151.0,0.00035616,31]
[400091422,1767089021699,-151.0,0.00035616,31]
[400091423,1767089021728,-152.686929,0.00035616,31]
[400091424,1767089021757,-1779.0,0.00035668,60]
[400091425,1767089021786,-150.69,0.00035673,60]
[400091426,1767089021814,-1779.0,0.00035768,60]
[400091427,1767089021842,-150.69,0.00035773,60]
[400091428,1767089021870,-986.161584,0.000358,31]
[400091429,1767089021897,-986.161584,0.000358,31]
[400091430,1767089022022,-986.161584,0.000358,31]
[400091431,1767089022051,-986.161587,0.000358,31]
[400091432,1767089022080,-1779.0,0.00035868,60]
[400091433,1767089022107,-150.69,0.00035873,60]
[400091434,1767089022136,-1391.47,0.0003589,39]
[400091435,1767089022165,-1779.0,0.00035968,60]
[400091436,1767089022192,-150.69,0.00035973,60]
[400091437,1767089022222,-1779.0,0.00036068,60]
[400091438,1767089022251,-150.69,0.00036073,60]
[400091439,1767089022279,-1779.0,0.00036168,60]
[400091440,1767089022307,-150.69,0.00036173,60]
[400091441,1767089022339,-161.0,0.00036247,30]
[400091442,1767089022370,-151.0,0.00036263,30]
[400091443,1767089022401,-1779.0,0.00036268,60]
[400091444,1767089022431,-150.76109153,0.00036273,60]
[400091445,1767089022463,-1779.0,0.00036368,60]
[400091446,1767089022493,-1391.47,0.00036438,40]
[400091447,1767089022525,-1779.0,0.00036468,60]
[400091448,1767089022556,-1779.0,0.00036568,60]
[400091449,1767089022587,-1779.0,0.00036668,60]
[400091450,1767089022619,-1779.0,0.00036768,60]
[400091451,1767089022649,-200.0,0.00036792,120]
[400091452,1767089022680,-1779.0,0.00036868,60]
[400091453,1767089022712,-1779.0,0.00036968,60]
[400091454,1767089022743,-1391.47,0.00036986,41]
[400091455,1767089022772,-1300.16383708,0.00036986,120]
[400091456,1767089022802,-1000.0,0.00037,120]
[400091457,1767089022830,-1000.0,0.00037,120]
[400091458,1767089022858,-1000.0,0.00037,120]
[400091459,1767089022885,-1000.0,0.00037,120]
[400091460,1767089022914,-1000.0,0.00037,120]
[400091461,1767089022943,-1000.0,0.00037,120]
[400091462,1767089022972,-1000.0,0.00037,120]
[400091463,1767089023002,-1000.0,0.00037,120]
[400091464,1767089023031,-885.01,0.00037,30]
[400091465,1767089023061,-152.84036767,0.00037,120]
[400091466,1767089023091,-200.0,0.00037024,120]
[400091467,1767089023122,-1779.0,0.00037068,60]
[400091468,1767089023154,-1779.0,0.00037168,60]
[400091469,1767089023188,-1779.0,0.00037268,60]
[400091470,1767089023219,-200.0,0.00037337,120]
[400091471,1767089023249,-1779.0,0.00037368,60]
[400091472,1767089023283,-162.35,0.000374,110]
[400091473,1767089023314,-256.5,0.00037405,30]
[400091474,1767089023351,-568.16477561,0.00037405,120]
[400091475,1767089023384,-1779.0,0.00037468,60]
[400091476,1767089023415,-369.62765264,0.00037513,30]
[400091477,1767089023445,-1391.47,0.00037534,42]
[400091478,1767089023477,-1779.0,0.00037568,60]
[400091479,1767089023510,-1779.0,0.00037668,60]
[400091480,1767089023541,-151.0,0.00037692,120]
[400091481,1767089023572,-580.75104488,0.00037753,120]
[400091482,1767089023605,-1779.0,0.00037768,60]
[400091483,1767089023635,-1000.0,0.000378,120]
[400091484,1767089023664,-1000.0,0.000378,120]
[400091485,1767089023693,-1000.0,0.000378,120]
[400091486,1767089023722,-1000.0,0.000378,120]
[400091487,1767089023750,-1000.0,0.000378,120]
[400091488,1767089023778,-1000.0,0.000378,120]
[400091489,1767089023808,-1779.0,0.00037868,60]
[400091490,1767089023836,-200.0,0.00037899,120]
[400091491,1767089023863,-200.0,0.00037899,120]
[400091492,1767089023891,-200.0,0.00037899,120]
[400091493,1767089023922,-1779.0,0.00037968,60]
[400091494,1767089023950,-2803.48844648,0.00038,60]
[400091495,1767089023978,-200.0,0.00038,120]
[400091496,1767089024006,-300.0,0.00038,120]
[400091497,1767089024038,-1000.0,0.00038011,30]
[400091498,1767089024068,-1779.0,0.00038068,60]
[400091499,1767089024096,-1391.47,0.00038082,43]
[400091500,1767089024124,-1314.0,0.00038082,120]
[400091501,1767089024153,-633.85469,0.000381,120]
[400091502,1767089024181,-352.14149,0.000381,120]
[400091503,1767089024211,-1779.0,0.00038168,60]
[400091504,1767089024240,-1779.0,0.00038268,60]
[400091505,1767089024269,-200.0,0.00038348,120]
[400091506,1767089024298,-151.0,0.00038356,120]
[400091507,1767089024327,-151.0,0.00038356,120]
[400091508,1767089024359,-151.0,0.00038356,120]
[400091509,1767089024388,-151.0,0.00038356,120]
[400091510,1767089024416,-151.0,0.00038356,120]
[400091511,1767089024445,-151.0,0.00038356,120]
[400091512,1767089024474,-151.0,0.00038356,120]
[400091513,1767089024504,-151.0,0.00038356,120]
[400091514,1767089024534,-151.0,0.00038356,120]
[400091515,1767089024563,-151.0,0.00038356,120]
[400091516,1767089024592,-188.381079,0.00038356,120]
[400091517,1767089024623,-1779.0,0.00038368,120]
[400091518,1767089024652,-5274.28374684,0.00038465,68]
[400091519,1767089024680,-5000.0,0.00038465,68]
[400091520,1767089024707,-5000.0,0.00038465,66]
[400091521,1767089024735,-5000.0,0.00038465,66]
[400091522,1767089024764,-5000.0,0.00038465,68]
[400091523,1767089024793,-1779.0,0.00038468,120]
[400091524,1767089024930,-1779.0,0.00038568,120]
[400091525,1767089024959,-1391.47,0.0003863,44]
[400091526,1767089024990,-1779.0,0.00038668,120]
[400091527,1767089025019,-168.94464086,0.00038767,30]
[400091528,1767089025048,-1779.0,0.00038768,120]
[400091529,1767089025076,-774.0,0.000388,55]
[400091530,1767089025107,-200.0,0.00038826,120]
[400091531,1767089025137,-1779.0,0.00038868,120]
[400091532,1767089025165,-5139.14574164,0.00038918,67]
[400091533,1767089025195,-1779.0,0.00038968,120]
[400091534,1767089025224,-200.0,0.00039,120]
[400091535,1767089025253,-400.0,0.00039,120]
[400091536,1767089025284,-1779.0,0.00039068,120]
[400091537,1767089025316,-200.0,0.00039151,120]
[400091538,1767089025348,-1779.0,0.00039168,120]
[400091539,1767089025380,-1391.47,0.00039178,45]
[400091540,1767089025410,-168.94464086,0.00039178,30]
[400091541,1767089025443,-1779.0,0.00039268,120]
[400091542,1767089025473,-200.0,0.00039288,120]
[400091543,1767089025502,-200.0,0.00039288,120]
[400091544,1767089025532,-200.0,0.00039288,120]
[400091545,1767089025563,-1779.0,0.00039368,120]
[400091546,1767089025598,-1779.0,0.00039468,120]
[400091547,1767089025631,-200.0,0.00039473,120]
[400091548,1767089025662,-200.0,0.00039498,120]
[400091549,1767089025693,-200.0,0.00039523,120]
[400091550,1767089025722,-200.0,0.00039523,120]
[400091551,1767089025751,-200.0,0.00039523,120]
[400091552,1767089025782,-1779.0,0.00039568,120]
[400091553,1767089025812,-200.0,0.00039577,120]
[400091554,1767089025843,-200.0,0.00039577,120]
[400091555,1767089025873,-200.0,0.00039577,120]
[400091556,1767089025904,-168.94464086,0.00039616,30]
[400091557,1767089025935,-1779.0,0.00039668,120]
[400091558,1767089025964,-200.0,0.00039671,120]
[400091559,1767089025993,-633.85469,0.000397,120]
[400091560,1767089026022,-352.14149,0.000397,120]
[400091561,1767089026050,-1391.47,0.00039726,46]
[400091562,1767089026080,-1779.0,0.00039768,120]
[400091563,1767089026109,-1000.0,0.000398,120]
[400091564,1767089026138,-1000.0,0.000398,120]
[400091565,1767089026165,-1000.0,0.000398,120]
[400091566,1767089026194,-1000.0,0.000398,120]
[400091567,1767089026223,-1000.0,0.000398,120]
[400091568,1767089026254,-1633.83,0.000398,120]
[400091569,1767089026286,-200.0,0.00039803,120]
[400091570,1767089026318,-1779.0,0.00039868,120]
[400091571,1767089026349,-200.0,0.00039878,120]
[400091572,1767089026380,-200.0,0.00039924,120]
[400091573,1767089026412,-1779.0,0.00039968,120]
[400091574,1767089026443,-365.39370366,0.00039999,31]
[400091575,1767089026474,-500.0,0.00039999,31]
[400091576,1767089026505,-224.04155815,0.00039999,31]
[400091577,1767089026539,-1838.30884242,0.0004,120]
[400091578,1767089026570,-1136.93875336,0.0004,30]
[400091579,1767089026603,-2211.96304091,0.0004,120]
[400091580,1767089026632,-3041.62902689,0.0004,120]
[400091581,1767089026660,-1519.22811534,0.0004,120]
[400091582,1767089026692,-498.55247731,0.0004,30]
[400091583,1767089026722,-174.41657281,0.0004,120]
[400091584,1767089026751,-2965.27305502,0.0004,120]
[400091585,1767089026781,-194.94678107,0.0004,120]
[400091586,1767089026811,-60000.0,0.0004,30]
[400091587,1767089026841,-300.0,0.0004,120]
[400091588,1767089026871,-300.0,0.0004,120]
[400091589,1767089026901,-1906.001,0.0004,120]
[400091590,1767089026930,-170.0,0.0004,120]
[400091591,1767089026959,-1079.80115785,0.0004,30]
[400091592,1767089026987,-200.0,0.0004,120]
[400091593,1767089027017,-168.94464086,0.00040027,30]
[400091594,1767089027046,-1779.0,0.00040068,120]
[400091595,1767089027077,-1779.0,0.00040168,120]
[400091596,1767089027108,-1779.0,0.00040268,120]
[400091597,1767089027138,-1391.47,0.00040273,47]
[400091598,1767089027168,-1779.0,0.00040368,120]
[400091599,1767089027200,-200.0,0.00040434,120]
[400091600,1767089027230,-168.94464086,0.00040438,30]
[400091601,1767089027261,-1779.0,0.00040468,120]
[400091602,1767089027292,-1779.0,0.00040568,120]
[400091603,1767089027327,-1779.0,0.00040668,120]
[400091604,1767089027363,-1779.0,0.00040768,120]
[400091605,1767089027396,-1391.47,0.00040821,48]
[400091606,1767089027429,-168.94464086,0.00040849,30]
[400091607,1767089027461,-1779.0,0.00040868,120]
[400091608,1767089027494,-1779.0,0.00040968,120]
[400091609,1767089027525,-1009.93457519,0.00040999,120]
[400091610,1767089027555,-1555.5027628,0.00041,120]
[400091611,1767089027587,-500.0,0.00041,120]
[400091612,1767089027619,-1500.0,0.00041,60]
[400091613,1767089027653,-1000.0,0.00041,120]
[400091614,1767089027687,-2459.7,0.00041,120]
[400091615,1767089027744,-588.032686,0.00041,60]
[400091616,1767089027801,-152.0,0.00041041,120]
[400091617,1767089027858,-1779.0,0.00041068,120]
[400091618,1767089027906,-770.0,0.00041096,120]
[400091619,1767089028040,-1801.27,0.00041096,120]
[400091620,1767089028077,-179.32985349,0.000411,120]
[400091621,1767089028112,-179.32985349,0.000411,120]
[400091622,1767089028145,-179.32985349,0.000411,120]
[400091623,1767089028177,-179.32,0.000411,120]
[400091624,1767089028208,-152.15866357,0.000411,120]
[400091625,1767089028238,-152.15866357,0.000411,120]
[400091626,1767089028268,-152.15866357,0.000411,120]
[400091627,1767089028298,-152.15866357,0.000411,120]
[400091628,1767089028329,-152.15866357,0.000411,120]
[400091629,1767089028364,-152.15866357,0.000411,120]
[400091630,1767089028394,-152.15866357,0.000411,120]
[400091631,1767089028424,-152.15866357,0.000411,120]
[400091632,1767089028456,-152.15866357,0.000411,120]
[400091633,1767089028485,-152.15866357,0.000411,120]
[400091634,1767089028515,-152.15,0.000411,120]
[400091635,1767089028547,-153.32472056,0.000411,120]
[400091636,1767089028579,-153.32472056,0.000411,120]
[400091637,1767089028610,-153.32472056,0.000411,120]
[400091638,1767089028642,-153.32472056,0.000411,120]
[400091639,1767089028673,-153.32472056,0.000411,120]
[400091640,1767089028702,-153.32472056,0.000411,120]
[400091641,1767089028732,-153.32472056,0.000411,120]
[400091642,1767089028762,-153.32472056,0.000411,120]
[400091643,1767089028792,-153.32472056,0.000411,120]
[400091644,1767089028821,-153.32472056,0.000411,120]
[400091645,1767089028851,-153.32472056,0.000411,120]
[400091646,1767089028880,-153.32472056,0.000411,120]
[400091647,1767089028909,-153.32472056,0.000411,120]
[400091648,1767089028938,-153.32472056,0.000411,120]
[400091649,1767089028967,-153.32,0.000411,120]
[400091650,1767089028994,-268.31826098,0.000411,120]
[400091651,1767089029023,-268.31826098,0.000411,120]
[400091652,1767089029051,-268.31826098,0.000411,120]
[400091653,1767089029082,-268.31826098,0.000411,120]
[400091654,1767089029110,-268.31826098,0.000411,120]
[400091655,1767089029139,-268.31826098,0.000411,120]
[400091656,1767089029168,-268.31826098,0.000411,120]
[400091657,1767089029196,-268.31826098,0.000411,120]
[400091658,1767089029225,-268.31826098,0.000411,120]
[400091659,1767089029256,-268.31826098,0.000411,120]
[400091660,1767089029289,-268.31826098,0.000411,120]
[400091661,1767089029324,-268.31826098,0.000411,120]
[400091662,1767089029359,-268.31826098,0.000411,120]
[400091663,1767089029393,-268.31826098,0.000411,120]
[400091664,1767089029427,-268.31826098,0.000411,120]
[400091665,1767089029457,-268.31826098,0.000411,120]
[400091666,1767089029489,-268.31826098,0.000411,120]
[400091667,1767089029522,-268.31826098,0.000411,120]
[400091668,1767089029554,-268.31826098,0.000411,120]
[400091669,1767089029587,-268.31,0.000411,120]
[400091670,1767089029618,-165.98300482,0.000411,120]
[400091671,1767089029649,-165.98300482,0.000411,120]
[400091672,1767089029681,-165.98300482,0.000411,120]
[400091673,1767089029712,-165.98300482,0.000411,120]
[400091674,1767089029743,-165.98300482,0.000411,120]
[400091675,1767089029771,-165.98300482,0.000411,120]
[400091676,1767089029799,-165.98300482,0.000411,120]
[400091677,1767089029827,-165.98,0.000411,120]
[400091678,1767089029856,-154.91747116,0.000411,120]
[400091679,1767089029886,-154.91747116,0.000411,120]
[400091680,1767089029916,-154.91747116,0.000411,120]
[400091681,1767089029947,-154.91747116,0.000411,120]
[400091682,1767089029978,-154.91747116,0.000411,120]
[400091683,1767089030007,-154.91747116,0.000411,120]
[400091684,1767089030037,-154.91747116,0.000411,120]
[400091685,1767089030067,-154.91747116,0.000411,120]
[400091686,1767089030095,-154.91747116,0.000411,120]
[400091687,1767089030123,-154.91747116,0.000411,120]
[400091688,1767089030151,-154.91747116,0.000411,120]
[400091689,1767089030179,-154.91747116,0.000411,120]
[400091690,1767089030211,-154.91747116,0.000411,120]
[400091691,1767089030242,-154.91747116,0.000411,120]
[400091692,1767089030273,-154.91747116,0.000411,120]
[400091693,1767089030311,-154.91747116,0.000411,120]
[400091694,1767089030356,-154.91747116,0.000411,120]
[400091695,1767089030389,-154.91747116,0.000411,120]
[400091696,1767089030422,-154.91747116,0.000411,120]
[400091697,1767089030453,-154.91,0.000411,120]
[400091698,1767089030485,-1779.0,0.00041168,120]
[400091699,1767089030516,-1779.0,0.00041268,120]
[400091700,1767089030551,-633.85474,0.000413,120]
[400091701,1767089030582,-352.14153,0.000413,120]
[400091702,1767089030615,-1779.0,0.00041368,120]
[400091703,1767089030646,-1391.47,0.00041369,49]
[400091704,1767089030677,-400.0,0.000414,120]
[400091705,1767089030708,-1779.0,0.00041468,120]
[400091706,1767089030739,-1779.0,0.00041568,120]
[400091707,1767089030768,-1779.0,0.00041668,120]
[400091708,1767089030799,-200.0,0.00041756,120]
[400091709,1767089030829,-1779.0,0.00041768,120]
[400091710,1767089030860,-200.0,0.00041794,120]
[400091711,1767089030889,-202.9547,0.000418,120]
[400091712,1767089030920,-1000.0,0.00041812,60]
[400091713,1767089030955,-244.0,0.00041812,60]
[400091714,1767089031080,-1779.0,0.00041868,120]
[400091715,1767089031112,-1391.47,0.00041917,50]
[400091716,1767089031144,-1779.0,0.00041968,120]
[400091717,1767089031174,-338.28929,0.00042,120]
[400091718,1767089031204,-500.0,0.00042,120]
[400091719,1767089031234,-300.0,0.00042,120]
[400091720,1767089031265,-162.04844494,0.00042,120]
[400091721,1767089031296,-2000.0,0.00042,120]
[400091722,1767089031329,-1779.0,0.00042068,120]
[400091723,1767089031365,-1779.14028122,0.00042168,120]
[400091724,1767089031397,-200.0,0.00042202,120]
[400091725,1767089031427,-200.0,0.00042403,120]
[400091726,1767089031458,-1391.47,0.00042465,51]
[400091727,1767089031488,-3290.516,0.000425,120]
[400091728,1767089031520,-200.0,0.00042728,120]
[400091729,1767089031551,-506.78,0.00043,120]
[400091730,1767089031582,-500.0,0.00043,120]
[400091731,1767089031612,-1000.0,0.00043,120]
[400091732,1767089031642,-1391.47,0.00043013,52]
[400091733,1767089031673,-2242.88,0.00043149,120]
[400091734,1767089031703,-2242.88,0.00043249,120]
[400091735,1767089031733,-2242.88,0.00043349,120]
[400091736,1767089031763,-2242.88,0.00043449,120]
[400091737,1767089031792,-2242.88,0.00043549,120]
[400091738,1767089031821,-1391.51839942,0.00043561,53]
[400091739,1767089031851,-2242.88,0.00043649,120]
[400091740,1767089031880,-200.0,0.00043737,120]
[400091741,1767089031908,-2242.88,0.00043749,120]
[400091742,1767089031938,-999.0,0.00043835,120]
[400091743,1767089031968,-2242.88,0.00043849,120]
[400091744,1767089031999,-2242.88,0.00043949,120]
[400091745,1767089032030,-500.0,0.00044,120]
[400091746,1767089032059,-300.0,0.00044,120]
[400091747,1767089032089,-400.0,0.00044,120]
[400091748,1767089032119,-2242.88,0.00044049,120]
[400091749,1767089032150,-2242.88,0.00044149,120]
[400091750,1767089032181,-2242.88,0.00044249,120]
[400091751,1767089032213,-2242.88,0.00044349,120]
[400091752,1767089032245,-2242.88,0.00044449,120]
[400091753,1767089032275,-100000.0,0.000445,90]
[400091754,1767089032309,-2242.88,0.00044549,120]
[400091755,1767089032342,-100000.0,0.000446,100]
[400091756,1767089032373,-2242.88,0.00044649,120]
[400091757,1767089032406,-602.24339012,0.000447,60]
[400091758,1767089032437,-152.0,0.00044725,120]
[400091759,1767089032471,-2243.32561379,0.00044749,120]
[400091760,1767089032503,-200.0,0.00044782,120]
[400091761,1767089032535,-212.25245076,0.000449,120]
[400091762,1767089032566,-200.0,0.00044911,120]
[400091763,1767089032598,-999.0,0.00044931,120]
[400091764,1767089032628,-200.0,0.00044994,120]
[400091765,1767089032657,-506.13899134,0.00045,120]
[400091766,1767089032685,-2357.75904263,0.00045,120]
[400091767,1767089032713,-1411.54990527,0.00045,120]
[400091768,1767089032742,-677.47340545,0.00045,120]
[400091769,1767089032771,-1454.72447634,0.00045,120]
[400091770,1767089032800,-279.66915321,0.00045,120]
[400091771,1767089032827,-160.0,0.00045,54]
[400091772,1767089032855,-3062.38173,0.00045,120]
[400091773,1767089032884,-800.0,0.00045,120]
[400091774,1767089032913,-4998.92847765,0.00045,120]
[400091775,1767089032941,-920.0,0.00045,120]
[400091776,1767089032969,-55480.0,0.00045,32]
[400091777,1767089032997,-668.67287346,0.00045,30]
[400091778,1767089033027,-200.0,0.00045,120]
[400091779,1767089033059,-740.72683547,0.00045,120]
[400091780,1767089033092,-258.55,0.00045,30]
[400091781,1767089033124,-632.3,0.00045,30]
[400091782,1767089033159,-676.29,0.00045,120]
[400091783,1767089033192,-2893.56,0.00045,120]
[400091784,1767089033225,-586.89,0.00045,120]
[400091785,1767089033257,-2736.914356,0.00045205,95]
[400091786,1767089033289,-2736.914356,0.00045205,95]
[400091787,1767089033322,-2736.914356,0.00045205,95]
[400091788,1767089033357,-2736.914356,0.00045205,95]
[400091789,1767089033391,-2736.914356,0.00045205,95]
[400091790,1767089033424,-2736.914356,0.00045205,95]
[400091791,1767089033459,-2736.914356,0.00045205,95]
[400091792,1767089033494,-2736.914356,0.00045205,95]
[400091793,1767089033527,-2736.914356,0.00045205,95]
[400091794,1767089033560,-2736.914356,0.00045205,95]
[400091795,1767089033594,-2736.914356,0.00045205,95]
[400091796,1767089033627,-2736.914356,0.00045205,95]
[400091797,1767089033661,-2736.914356,0.00045205,95]
[400091798,1767089033695,-2736.914356,0.00045205,95]
[400091799,1767089033725,-2736.914356,0.00045205,95]
[400091800,1767089033757,-2736.914356,0.00045205,95]
[400091801,1767089033788,-2736.914356,0.00045205,95]
[400091802,1767089033820,-2736.914356,0.00045205,95]
[400091803,1767089033851,-2736.914356,0.00045205,95]
[400091804,1767089033882,-2736.914361,0.00045205,95]
[400091805,1767089033915,-2416.37458514,0.000454,120]
[400091806,1767089033952,-1000.0,0.00045993,120]
[400091807,1767089033987,-492.0,0.00045993,120]
[400091808,1767089034019,-1000.0,0.00045999,120]
[400091809,1767089034156,-499.64645039,0.00046,30]
[400091810,1767089034189,-800.0,0.00046,120]
[400091811,1767089034222,-300.0,0.00046,120]
[400091812,1767089034253,-1567.0,0.00046,60]
[400091813,1767089034287,-999.0,0.00046027,120]
[400091814,1767089034320,-200.0,0.00046745,120]
[400091815,1767089034353,-544.8744708,0.00046887,90]
[400091816,1767089034386,-800.0,0.00047,120]
[400091817,1767089034418,-200.0,0.00047,120]
[400091818,1767089034451,-1000.0,0.00047,120]
[400091819,1767089034482,-2459.7,0.00047,120]
[400091820,1767089034515,-999.0,0.00047123,120]
[400091821,1767089034548,-632.3,0.0004725,30]
[400091822,1767089034583,-2893.56,0.0004725,120]
[400091823,1767089034616,-586.89,0.0004725,120]
[400091824,1767089034650,-676.29,0.0004725,120]
[400091825,1767089034683,-200.0,0.00047274,120]
[400091826,1767089034716,-200.0,0.00047538,120]
[400091827,1767089034748,-1000.0,0.00047999,120]
[400091828,1767089034777,-304.95762561,0.00048,120]